[Event "*** Titled Tuesday Blitz"]
[Site "Chess.com"]
[Date "2021.02.02"]
[Round "5"]
[White "erlesfar"]
[Black "fabianvivasz"]
[Result "0-1"]
[WhiteElo "2484"]
[BlackElo "2317"]
[TimeControl "180+1"]
[EndTime "10:58:58 PST"]
[Termination "fabianvivasz won by resignation"]

1. e4 {[%clk 0:03:00.9]} 1... e5 {[%clk 0:02:57.3]} 2. Bc4 {[%clk 0:02:59.8]}
2... Nf6 {[%clk 0:02:56.7]} 3. Nc3 {[%clk 0:02:59.1]} 3... Nxe4 {[%clk
0:02:55.5]} 4. Nf3 {[%clk 0:02:58.2]} 4... Nc6 {[%clk 0:02:49.4]} 5. O-O {[%clk
0:02:53.4]} 5... Nxc3 {[%clk 0:02:46.4]} 6. dxc3 {[%clk 0:02:52.5]} 6... h6
{[%clk 0:02:14.5]} 7. Qd5 {[%clk 0:02:37]} 7... Qf6 {[%clk 0:01:43.7]} 8. Re1
{[%clk 0:02:29.1]} 8... d6 {[%clk 0:01:41]} 9. Bb5 {[%clk 0:02:05]} 9... Bd7
{[%clk 0:01:38.5]} 10. Nd4 {[%clk 0:02:04.9]} 10... Nd8 {[%clk 0:01:34.5]} 11.
Bxd7+ {[%clk 0:01:56.7]} 11... Kxd7 {[%clk 0:01:35.4]} 12. Nb3 {[%clk
0:01:50.3]} 12... c6 {[%clk 0:01:25.9]} 13. Qa5 {[%clk 0:01:49.5]} 13... b6
{[%clk 0:01:01.2]} 14. Qa6 {[%clk 0:01:47.9]} 14... Ne6 {[%clk 0:00:52.4]} 15.
Qb7+ {[%clk 0:01:38.4]} 15... Nc7 {[%clk 0:00:52.4]} 16. Be3 {[%clk 0:01:34.6]}
16... Be7 {[%clk 0:00:49.3]} 17. Rad1 {[%clk 0:01:19.8]} 17... Rhb8 {[%clk
0:00:47.2]} 18. Qxb8 {[%clk 0:01:07.1]} 18... Rxb8 {[%clk 0:00:48.1]} 19. a4
{[%clk 0:01:06]} 19... a5 {[%clk 0:00:46.5]} 20. c4 {[%clk 0:01:04.6]} 20... Ke8
{[%clk 0:00:42.7]} 21. Nd2 {[%clk 0:01:01.8]} 21... d5 {[%clk 0:00:42.3]} 22. c3
{[%clk 0:01:00.4]} 22... Kf8 {[%clk 0:00:39.4]} 23. b3 {[%clk 0:00:57.3]} 23...
Qg6 {[%clk 0:00:36.2]} 24. g3 {[%clk 0:00:56.1]} 24... f5 {[%clk 0:00:35.4]} 25.
f4 {[%clk 0:00:55.4]} 25... e4 {[%clk 0:00:33.9]} 26. Bd4 {[%clk 0:00:54.5]}
26... c5 {[%clk 0:00:31.6]} 27. Be5 {[%clk 0:00:54.1]} 27... Bd6 {[%clk
0:00:29.7]} 28. Bxd6+ {[%clk 0:00:53.6]} 28... Qxd6 {[%clk 0:00:30.6]} 29. cxd5
{[%clk 0:00:54]} 29... Nxd5 {[%clk 0:00:27.3]} 30. Nc4 {[%clk 0:00:52.3]} 30...
Qe6 {[%clk 0:00:25.4]} 31. Rc1 {[%clk 0:00:49]} 31... g5 {[%clk 0:00:21.1]} 32.
fxg5 {[%clk 0:00:46.4]} 32... hxg5 {[%clk 0:00:22]} 33. Re2 {[%clk 0:00:44.5]}
33... f4 {[%clk 0:00:21.4]} 34. Rd1 {[%clk 0:00:40.3]} 34... Nxc3 {[%clk
0:00:18.3]} 35. Red2 {[%clk 0:00:37.7]} 35... Nxd1 {[%clk 0:00:18.1]} 36. Rxd1
{[%clk 0:00:37.9]} 36... fxg3 {[%clk 0:00:15.6]} 37. hxg3 {[%clk 0:00:38]} 37...
Qg4 {[%clk 0:00:15.7]} 38. Rf1+ {[%clk 0:00:36.1]} 38... Kg7 {[%clk 0:00:15.2]}
39. Kg2 {[%clk 0:00:37]} 39... Rh8 {[%clk 0:00:14.1]} 40. Ne3 {[%clk 0:00:33.9]}
40... Qh3+ {[%clk 0:00:13.9]} 41. Kf2 {[%clk 0:00:33.6]} 41... Rf8+ {[%clk
0:00:13.9]} 42. Ke2 {[%clk 0:00:33.9]} 42... Rxf1 {[%clk 0:00:14.1]} 43. Nxf1
{[%clk 0:00:34.8]} 43... Qg2+ {[%clk 0:00:14.5]} 44. Ke1 {[%clk 0:00:34.3]}
44... Qb2 {[%clk 0:00:14.5]} 45. Ne3 {[%clk 0:00:35.2]} 45... Qxb3 {[%clk
0:00:14.7]} 46. Ke2 {[%clk 0:00:35.9]} 46... Qxa4 {[%clk 0:00:14.4]} 47. Nf5+
{[%clk 0:00:36.8]} 47... Kf6 {[%clk 0:00:14.3]} 48. Nd6 {[%clk 0:00:37.7]} 48...
Qc2+ {[%clk 0:00:13.1]} 49. Ke1 {[%clk 0:00:36.3]} 49... Qc3+ {[%clk 0:00:12.6]}
50. Kf2 {[%clk 0:00:34.1]} 50... Qd4+ {[%clk 0:00:12.9]} 0-1

[Event "*** Titled Tuesday Blitz"]
[Site "Chess.com"]
[Date "2021.02.02"]
[Round "5"]
[White "Happy1712Drummer"]
[Black "PriSachu"]
[Result "0-1"]
[WhiteElo "2343"]
[BlackElo "2480"]
[TimeControl "180+1"]
[EndTime "10:59:00 PST"]
[Termination "PriSachu won by resignation"]

1. Nf3 {[%clk 0:03:00.5]} 1... Nf6 {[%clk 0:02:57.1]} 2. d4 {[%clk 0:02:57.7]}
2... g6 {[%clk 0:02:56.1]} 3. Bg5 {[%clk 0:02:56.8]} 3... Bg7 {[%clk 0:02:56]}
4. h4 {[%clk 0:02:56.8]} 4... h6 {[%clk 0:02:52.2]} 5. Bf4 {[%clk 0:02:55.8]}
5... d6 {[%clk 0:02:49.8]} 6. c3 {[%clk 0:02:56]} 6... Nbd7 {[%clk 0:02:48.1]}
7. Nbd2 {[%clk 0:02:55.8]} 7... b6 {[%clk 0:02:47.2]} 8. a4 {[%clk 0:02:54.5]}
8... Bb7 {[%clk 0:02:46.9]} 9. a5 {[%clk 0:02:54.7]} 9... O-O {[%clk 0:02:43.1]}
10. e3 {[%clk 0:02:43]} 10... a6 {[%clk 0:02:37.8]} 11. axb6 {[%clk 0:02:38.8]}
11... cxb6 {[%clk 0:02:37.3]} 12. Nc4 {[%clk 0:02:30.6]} 12... b5 {[%clk
0:02:31.9]} 13. Na5 {[%clk 0:02:30.3]} 13... Be4 {[%clk 0:02:31.1]} 14. Bd3
{[%clk 0:02:27.8]} 14... Qb6 {[%clk 0:02:26.9]} 15. Bxe4 {[%clk 0:02:18.4]}
15... Nxe4 {[%clk 0:02:26.8]} 16. O-O {[%clk 0:02:15.7]} 16... Ndf6 {[%clk
0:02:05.6]} 17. Nd2 {[%clk 0:01:47.3]} 17... Nxd2 {[%clk 0:02:01.8]} 18. Qxd2
{[%clk 0:01:48.2]} 18... Rfc8 {[%clk 0:01:56.5]} 19. Ra2 {[%clk 0:01:35.7]}
19... Ne4 {[%clk 0:01:37.2]} 20. Qd3 {[%clk 0:01:33]} 20... d5 {[%clk
0:01:35.6]} 21. f3 {[%clk 0:01:17.6]} 21... Nd6 {[%clk 0:01:30.4]} 22. Nb3
{[%clk 0:01:15.6]} 22... Nc4 {[%clk 0:01:25.9]} 23. Kh1 {[%clk 0:01:08.1]} 23...
b4 {[%clk 0:01:10]} 24. Nc5 {[%clk 0:01:02.4]} 24... bxc3 {[%clk 0:00:59.4]} 25.
bxc3 {[%clk 0:01:03.3]} 25... a5 {[%clk 0:00:52.4]} 26. Rb1 {[%clk 0:00:59.8]}
26... Qc6 {[%clk 0:00:52.4]} 27. Bg3 {[%clk 0:00:54.7]} 27... e5 {[%clk
0:00:43]} 28. e4 {[%clk 0:00:52.1]} 28... exd4 {[%clk 0:00:40]} 29. cxd4 {[%clk
0:00:53]} 29... Nd6 {[%clk 0:00:36.4]} 30. Rc2 {[%clk 0:00:48.3]} 30... dxe4
{[%clk 0:00:28.4]} 31. fxe4 {[%clk 0:00:49.2]} 31... a4 {[%clk 0:00:26.1]} 32.
d5 {[%clk 0:00:44.6]} 32... Qc7 {[%clk 0:00:18.9]} 33. e5 {[%clk 0:00:43]} 33...
Nf5 {[%clk 0:00:18.8]} 34. d6 {[%clk 0:00:36.5]} 34... Qc6 {[%clk 0:00:18.8]}
35. Bh2 {[%clk 0:00:35.6]} 35... a3 {[%clk 0:00:18.2]} 36. d7 {[%clk 0:00:34.8]}
36... Rd8 {[%clk 0:00:17.7]} 37. Rd1 {[%clk 0:00:34.6]} 37... a2 {[%clk
0:00:17.4]} 38. Qf1 {[%clk 0:00:23.8]} 38... Bf8 {[%clk 0:00:12.2]} 39. Bg1
{[%clk 0:00:20.2]} 39... Ng3+ {[%clk 0:00:11.7]} 40. Kh2 {[%clk 0:00:19.8]}
40... Nxf1+ {[%clk 0:00:12.3]} 41. Rxf1 {[%clk 0:00:20.5]} 41... a1=Q {[%clk
0:00:12.4]} 42. Rxa1 {[%clk 0:00:19.9]} 42... Rxa1 {[%clk 0:00:13.1]} 43. Bf2
{[%clk 0:00:19.2]} 43... Qd5 {[%clk 0:00:11.3]} 0-1

[Event "*** Titled Tuesday Blitz"]
[Site "Chess.com"]
[Date "2021.02.02"]
[Round "5"]
[White "Man-Chuk"]
[Black "SGchess01"]
[Result "0-1"]
[WhiteElo "2914"]
[BlackElo "2813"]
[TimeControl "180+1"]
[EndTime "10:59:01 PST"]
[Termination "SGchess01 won by resignation"]

1. c4 {[%clk 0:01:25.4]} 1... Nf6 {[%clk 0:02:56.8]} 2. Nc3 {[%clk 0:01:24.6]}
2... e5 {[%clk 0:02:56.5]} 3. g3 {[%clk 0:01:21.9]} 3... d5 {[%clk 0:02:54.4]}
4. cxd5 {[%clk 0:01:21.7]} 4... Nxd5 {[%clk 0:02:55.3]} 5. Bg2 {[%clk
0:01:22.3]} 5... Nb6 {[%clk 0:02:55.8]} 6. d3 {[%clk 0:01:21.2]} 6... Be7 {[%clk
0:02:54.9]} 7. Be3 {[%clk 0:01:21.6]} 7... O-O {[%clk 0:02:54.9]} 8. Rc1 {[%clk
0:01:22.3]} 8... Re8 {[%clk 0:02:55.4]} 9. Nf3 {[%clk 0:01:21.6]} 9... Nc6
{[%clk 0:02:54.8]} 10. O-O {[%clk 0:01:21.7]} 10... Bg4 {[%clk 0:02:55.4]} 11.
Nd2 {[%clk 0:01:20.1]} 11... Bf8 {[%clk 0:02:54.5]} 12. Bxc6 {[%clk 0:01:19.2]}
12... bxc6 {[%clk 0:02:55.4]} 13. f3 {[%clk 0:01:18.6]} 13... Bh3 {[%clk
0:02:51.9]} 14. Re1 {[%clk 0:01:18.7]} 14... Nd5 {[%clk 0:02:38.1]} 15. Bf2
{[%clk 0:01:19]} 15... g6 {[%clk 0:02:36.6]} 16. Qc2 {[%clk 0:01:13.1]} 16...
Bh6 {[%clk 0:02:36]} 17. Nce4 {[%clk 0:01:06.9]} 17... f5 {[%clk 0:02:32.8]} 18.
Nc3 {[%clk 0:00:55.7]} 18... Ne3 {[%clk 0:02:19.2]} 19. Qa4 {[%clk 0:00:48.2]}
19... Qf6 {[%clk 0:02:07.1]} 20. Nc4 {[%clk 0:00:44.7]} 20... Nd5 {[%clk
0:01:31.1]} 21. Rc2 {[%clk 0:00:44.8]} 21... Kh8 {[%clk 0:01:26.1]} 22. Na5
{[%clk 0:00:42.3]} 22... Ne3 {[%clk 0:01:16.2]} 23. Rcc1 {[%clk 0:00:41.5]}
23... Rab8 {[%clk 0:01:07]} 24. Rb1 {[%clk 0:00:34.7]} 24... c5 {[%clk
0:00:55.7]} 25. Nc4 {[%clk 0:00:33.7]} 25... Nxc4 {[%clk 0:00:33.7]} 26. Qxc4
{[%clk 0:00:33.2]} 26... g5 {[%clk 0:00:29.3]} 27. Nd5 {[%clk 0:00:30.9]} 27...
Qf7 {[%clk 0:00:26.6]} 28. Qxc5 {[%clk 0:00:30.5]} 28... g4 {[%clk 0:00:26.7]}
29. Nxc7 {[%clk 0:00:27.8]} 29... Rbc8 {[%clk 0:00:22]} 30. Qc6 {[%clk
0:00:09.9]} 30... Bd2 {[%clk 0:00:17.5]} 31. Red1 {[%clk 0:00:04.7]} 31... Rxc7
{[%clk 0:00:17.6]} 32. Qb5 {[%clk 0:00:04.9]} 32... Bh6 {[%clk 0:00:17]} 33. d4
{[%clk 0:00:04.2]} 33... gxf3 {[%clk 0:00:16.9]} 34. exf3 {[%clk 0:00:03.9]}
34... e4 {[%clk 0:00:17.5]} 35. fxe4 {[%clk 0:00:04.3]} 35... fxe4 {[%clk
0:00:18.4]} 36. d5 {[%clk 0:00:02.3]} 36... e3 {[%clk 0:00:18.7]} 37. Be1 {[%clk
0:00:02.6]} 37... e2 {[%clk 0:00:17.8]} 38. Bc3+ {[%clk 0:00:01.6]} 38... Rxc3
{[%clk 0:00:18.3]} 39. bxc3 {[%clk 0:00:01.7]} 39... Be3+ {[%clk 0:00:18]} 0-1

[Event "*** Titled Tuesday Blitz"]
[Site "Chess.com"]
[Date "2021.02.02"]
[Round "5"]
[White "Murad_Ibrahimli"]
[Black "remi04"]
[Result "0-1"]
[WhiteElo "2834"]
[BlackElo "2620"]
[TimeControl "180+1"]
[EndTime "10:59:01 PST"]
[Termination "remi04 won by resignation"]

1. d4 {[%clk 0:03:00.9]} 1... Nf6 {[%clk 0:02:58.8]} 2. c4 {[%clk 0:03:01.3]}
2... e6 {[%clk 0:02:58.6]} 3. Nf3 {[%clk 0:03:00.2]} 3... Bb4+ {[%clk
0:02:58.6]} 4. Nbd2 {[%clk 0:02:58.5]} 4... d5 {[%clk 0:02:56.7]} 5. e3 {[%clk
0:02:58.3]} 5... O-O {[%clk 0:02:56.3]} 6. Bd3 {[%clk 0:02:57]} 6... c5 {[%clk
0:02:56.2]} 7. O-O {[%clk 0:02:50.4]} 7... Nc6 {[%clk 0:02:54.4]} 8. cxd5 {[%clk
0:02:21.9]} 8... exd5 {[%clk 0:02:51.6]} 9. dxc5 {[%clk 0:02:21.6]} 9... Bxc5
{[%clk 0:02:51.5]} 10. a3 {[%clk 0:02:22.1]} 10... a5 {[%clk 0:02:49.7]} 11. b3
{[%clk 0:02:20.5]} 11... d4 {[%clk 0:02:44.4]} 12. e4 {[%clk 0:02:17.8]} 12...
Bg4 {[%clk 0:02:41.7]} 13. h3 {[%clk 0:02:16.7]} 13... Bh5 {[%clk 0:02:40.1]}
14. Qc2 {[%clk 0:02:10.1]} 14... Bd6 {[%clk 0:02:20.6]} 15. Bb2 {[%clk
0:02:09.1]} 15... Rc8 {[%clk 0:02:20.2]} 16. Qb1 {[%clk 0:02:08.9]} 16... Bf4
{[%clk 0:02:18.9]} 17. Ra2 {[%clk 0:01:54.8]} 17... Re8 {[%clk 0:02:09.9]} 18.
Bc1 {[%clk 0:01:51.3]} 18... Qc7 {[%clk 0:01:58]} 19. Rc2 {[%clk 0:01:44.8]}
19... Qb8 {[%clk 0:01:57.7]} 20. Rc5 {[%clk 0:01:34.6]} 20... Bg6 {[%clk
0:01:50.5]} 21. Re1 {[%clk 0:01:21.3]} 21... Nd7 {[%clk 0:01:41.5]} 22. Rb5
{[%clk 0:01:15.5]} 22... Nde5 {[%clk 0:01:38.1]} 23. Nxe5 {[%clk 0:00:49.3]}
23... Nxe5 {[%clk 0:01:37.3]} 24. Nc4 {[%clk 0:00:49.8]} 24... Nxd3 {[%clk
0:01:20.7]} 25. Qxd3 {[%clk 0:00:48.2]} 25... Bxc1 {[%clk 0:01:20.7]} 26. Rxc1
{[%clk 0:00:48.8]} 26... Rxe4 {[%clk 0:01:21.3]} 27. Qd2 {[%clk 0:00:49.3]}
27... h6 {[%clk 0:01:12.9]} 28. a4 {[%clk 0:00:38]} 28... Rce8 {[%clk
0:01:08.7]} 29. Qxa5 {[%clk 0:00:32.9]} 29... Qf4 {[%clk 0:01:05.4]} 30. Qd2
{[%clk 0:00:31.6]} 30... Qxd2 {[%clk 0:00:53.1]} 31. Nxd2 {[%clk 0:00:31.2]}
31... Re2 {[%clk 0:00:48]} 32. Nf3 {[%clk 0:00:30]} 32... d3 {[%clk 0:00:47.1]}
33. Rd1 {[%clk 0:00:30.5]} 33... Rb2 {[%clk 0:00:46]} 34. Rxb7 {[%clk
0:00:18.7]} 34... Ree2 {[%clk 0:00:42.9]} 35. Rf1 {[%clk 0:00:14.8]} 35... d2
{[%clk 0:00:40.4]} 36. Rd7 {[%clk 0:00:15.3]} 36... Be4 {[%clk 0:00:31.7]} 37.
a5 {[%clk 0:00:13.1]} 37... Bxf3 {[%clk 0:00:25.8]} 38. gxf3 {[%clk 0:00:13.5]}
38... Re1 {[%clk 0:00:26.2]} 39. a6 {[%clk 0:00:09.9]} 39... Rbb1 {[%clk
0:00:26]} 40. a7 {[%clk 0:00:07.8]} 40... Rxf1+ {[%clk 0:00:25.6]} 41. Kh2
{[%clk 0:00:08.4]} 41... Ra1 {[%clk 0:00:22.9]} 42. Kg2 {[%clk 0:00:08.3]} 42...
d1=Q {[%clk 0:00:18.3]} 0-1

[Event "*** Titled Tuesday Blitz"]
[Site "Chess.com"]
[Date "2021.02.02"]
[Round "5"]
[White "eldur16"]
[Black "DinaBelenkaya"]
[Result "1-0"]
[WhiteElo "2532"]
[BlackElo "2389"]
[TimeControl "180+1"]
[EndTime "10:59:03 PST"]
[Termination "eldur16 won by resignation"]

1. Nf3 {[%clk 0:03:00.9]} 1... d5 {[%clk 0:02:59.7]} 2. g3 {[%clk 0:03:00.4]}
2... Bg4 {[%clk 0:02:57.2]} 3. Bg2 {[%clk 0:03:01.3]} 3... c6 {[%clk 0:02:52.2]}
4. O-O {[%clk 0:03:00.7]} 4... Nd7 {[%clk 0:02:51.7]} 5. d3 {[%clk 0:03:00.7]}
5... e6 {[%clk 0:02:43.2]} 6. Nbd2 {[%clk 0:02:59.8]} 6... Bc5 {[%clk
0:02:42.7]} 7. b3 {[%clk 0:02:48.3]} 7... a5 {[%clk 0:02:37.1]} 8. a3 {[%clk
0:02:46.9]} 8... Ngf6 {[%clk 0:02:33.3]} 9. Bb2 {[%clk 0:02:46.4]} 9... O-O
{[%clk 0:02:32.6]} 10. c4 {[%clk 0:02:46.1]} 10... Qe7 {[%clk 0:02:21.5]} 11.
Qc2 {[%clk 0:02:44.9]} 11... Rfc8 {[%clk 0:02:20.8]} 12. d4 {[%clk 0:02:41.2]}
12... Ba7 {[%clk 0:02:09.5]} 13. c5 {[%clk 0:02:36.6]} 13... b6 {[%clk 0:02:01]}
14. b4 {[%clk 0:02:34]} 14... Bf5 {[%clk 0:01:51.5]} 15. Qc3 {[%clk 0:02:32.5]}
15... Ne4 {[%clk 0:01:50.7]} 16. Qe3 {[%clk 0:02:24.2]} 16... e5 {[%clk
0:01:47.1]} 17. Nh4 {[%clk 0:02:14.2]} 17... g6 {[%clk 0:01:03.4]} 18. Nxe4
{[%clk 0:02:06.3]} 18... Bxe4 {[%clk 0:00:57.8]} 19. Bxe4 {[%clk 0:02:05.8]}
19... dxe4 {[%clk 0:00:58.5]} 20. Qxe4 {[%clk 0:02:05.7]} 20... f5 {[%clk
0:00:59]} 21. Qd3 {[%clk 0:01:59.4]} 21... Rd8 {[%clk 0:00:36.2]} 22. Qc4+
{[%clk 0:01:37.9]} 22... Qf7 {[%clk 0:00:30.9]} 23. Qc3 {[%clk 0:01:34.4]} 23...
bxc5 {[%clk 0:00:18.3]} 24. dxc5 {[%clk 0:01:27.9]} 24... Qe6 {[%clk 0:00:11.1]}
25. Rfd1 {[%clk 0:01:26]} 25... Re8 {[%clk 0:00:10.6]} 26. Rd6 {[%clk
0:01:24.5]} 26... Qe7 {[%clk 0:00:09.7]} 27. Rxc6 {[%clk 0:01:22.4]} 27... Rac8
{[%clk 0:00:09.7]} 28. Rxc8 {[%clk 0:01:16]} 28... Rxc8 {[%clk 0:00:10.6]} 29.
Rd1 {[%clk 0:01:15.5]} 29... Bb8 {[%clk 0:00:11]} 30. c6 {[%clk 0:01:11.5]}
30... Nf8 {[%clk 0:00:10.4]} 31. b5 {[%clk 0:01:11.1]} 31... Ne6 {[%clk
0:00:10.3]} 32. Nf3 {[%clk 0:01:08.6]} 32... Ng5 {[%clk 0:00:01.9]} 33. Nxg5
{[%clk 0:00:57.6]} 33... Qxg5 {[%clk 0:00:02.8]} 34. b6 {[%clk 0:00:56.5]} 34...
Qe7 {[%clk 0:00:03]} 35. c7 {[%clk 0:00:51.9]} 35... Bxc7 {[%clk 0:00:03.4]} 36.
bxc7 {[%clk 0:00:51.6]} 36... Rxc7 {[%clk 0:00:04.3]} 37. Qxe5 {[%clk
0:00:50.5]} 37... Qxe5 {[%clk 0:00:03.7]} 38. Bxe5 {[%clk 0:00:49.8]} 38... Rc2
{[%clk 0:00:04.4]} 39. Kf1 {[%clk 0:00:48.2]} 39... Ra2 {[%clk 0:00:04.2]} 40.
Rd3 {[%clk 0:00:47.5]} 40... Kf7 {[%clk 0:00:04.8]} 41. h4 {[%clk 0:00:46.9]}
41... Ke6 {[%clk 0:00:04.9]} 42. Bc7 {[%clk 0:00:46.6]} 42... a4 {[%clk
0:00:05.1]} 43. Ba5 {[%clk 0:00:46.3]} 43... Ra1+ {[%clk 0:00:04.7]} 44. Kg2
{[%clk 0:00:45.7]} 44... Ra2 {[%clk 0:00:05.6]} 45. Kf3 {[%clk 0:00:45.6]} 45...
h6 {[%clk 0:00:03.7]} 46. Bb4 {[%clk 0:00:45.5]} 46... h5 {[%clk 0:00:03.6]} 47.
Rd6+ {[%clk 0:00:45.4]} 47... Kf7 {[%clk 0:00:04.3]} 48. Ra6 {[%clk 0:00:45.1]}
48... Rb2 {[%clk 0:00:04.2]} 49. Rxa4 {[%clk 0:00:44.9]} 49... Rb3+ {[%clk
0:00:05]} 50. e3 {[%clk 0:00:44.2]} 50... g5 {[%clk 0:00:04.8]} 51. Ra7+ {[%clk
0:00:41.8]} 51... Kg6 {[%clk 0:00:04.7]} 52. Ra6+ {[%clk 0:00:41.8]} 52... Kf7
{[%clk 0:00:04.7]} 53. hxg5 {[%clk 0:00:41.8]} 53... h4 {[%clk 0:00:04.7]} 54.
gxh4 {[%clk 0:00:41.3]} 1-0

[Event "*** Titled Tuesday Blitz"]
[Site "Chess.com"]
[Date "2021.02.02"]
[Round "5"]
[White "FairChess_on_YouTube"]
[Black "ShimanovAlex"]
[Result "1-0"]
[WhiteElo "2932"]
[BlackElo "2831"]
[TimeControl "180+1"]
[EndTime "10:59:04 PST"]
[Termination "FairChess_on_YouTube won on time"]

1. e4 {[%clk 0:03:00.9]} 1... b6 {[%clk 0:02:59.5]} 2. d4 {[%clk 0:02:59.2]}
2... Bb7 {[%clk 0:02:59.3]} 3. Bd3 {[%clk 0:02:59.7]} 3... e6 {[%clk 0:02:59.4]}
4. Nf3 {[%clk 0:02:57.8]} 4... c5 {[%clk 0:02:58.7]} 5. c3 {[%clk 0:02:56.7]}
5... Nf6 {[%clk 0:02:58.1]} 6. Nbd2 {[%clk 0:02:56.2]} 6... d5 {[%clk
0:02:54.5]} 7. e5 {[%clk 0:02:55.6]} 7... Nfd7 {[%clk 0:02:54.6]} 8. a3 {[%clk
0:02:48.5]} 8... Nc6 {[%clk 0:02:53.7]} 9. b4 {[%clk 0:02:48.1]} 9... Be7 {[%clk
0:02:52.5]} 10. h4 {[%clk 0:02:42]} 10... g6 {[%clk 0:02:37.7]} 11. g3 {[%clk
0:02:28.2]} 11... h6 {[%clk 0:02:26.9]} 12. Rb1 {[%clk 0:02:26.2]} 12... Qc7
{[%clk 0:02:26.8]} 13. Bb2 {[%clk 0:02:15.4]} 13... c4 {[%clk 0:02:06.8]} 14.
Bc2 {[%clk 0:02:14.9]} 14... b5 {[%clk 0:02:03.1]} 15. Nf1 {[%clk 0:02:03.8]}
15... a5 {[%clk 0:02:00.5]} 16. Ne3 {[%clk 0:02:03.8]} 16... Nb6 {[%clk
0:01:47.8]} 17. Bc1 {[%clk 0:01:40.6]} 17... axb4 {[%clk 0:01:46.1]} 18. axb4
{[%clk 0:01:40.3]} 18... Ra2 {[%clk 0:01:39.6]} 19. Ng4 {[%clk 0:01:30.7]} 19...
Bf8 {[%clk 0:01:27.7]} 20. Nf6+ {[%clk 0:01:21.7]} 20... Kd8 {[%clk 0:01:27.3]}
21. O-O {[%clk 0:01:21.5]} 21... Nd7 {[%clk 0:01:24.1]} 22. Ng4 {[%clk
0:01:17.6]} 22... Kc8 {[%clk 0:01:18.9]} 23. Bf4 {[%clk 0:01:15.5]} 23... Qd8
{[%clk 0:01:14.1]} 24. Ra1 {[%clk 0:01:13.4]} 24... Rxa1 {[%clk 0:01:12.7]} 25.
Qxa1 {[%clk 0:01:14.3]} 25... Ne7 {[%clk 0:01:01.8]} 26. Qc1 {[%clk 0:01:05.2]}
26... Ng8 {[%clk 0:00:55.4]} 27. Qd2 {[%clk 0:01:03.5]} 27... Bc6 {[%clk
0:00:48.3]} 28. Ra1 {[%clk 0:01:03]} 28... Kb7 {[%clk 0:00:48.6]} 29. Bb1 {[%clk
0:01:02.1]} 29... Nb6 {[%clk 0:00:47.2]} 30. Ne1 {[%clk 0:00:48.1]} 30... h5
{[%clk 0:00:43.1]} 31. Nf6 {[%clk 0:00:41.6]} 31... Be7 {[%clk 0:00:33.4]} 32.
Nxg8 {[%clk 0:00:35.5]} 32... Rxg8 {[%clk 0:00:34.3]} 33. Nf3 {[%clk 0:00:35.8]}
33... Qc7 {[%clk 0:00:25.7]} 34. Bc2 {[%clk 0:00:35.5]} 34... Ra8 {[%clk
0:00:25.1]} 35. Rxa8 {[%clk 0:00:35]} 35... Kxa8 {[%clk 0:00:24.4]} 36. Bg5
{[%clk 0:00:33.5]} 36... Bf8 {[%clk 0:00:23.1]} 37. Qf4 {[%clk 0:00:32]} 37...
Na4 {[%clk 0:00:11.2]} 38. Bxg6 {[%clk 0:00:27]} 38... Nxc3 {[%clk 0:00:10.9]}
39. Qxf7 {[%clk 0:00:26.2]} 39... Qxf7 {[%clk 0:00:10.2]} 40. Bxf7 {[%clk
0:00:27.1]} 40... Bxb4 {[%clk 0:00:10.4]} 41. Bxh5 {[%clk 0:00:26]} 41... Ba3
{[%clk 0:00:06]} 42. Bg6 {[%clk 0:00:25.5]} 42... b4 {[%clk 0:00:06.1]} 43. h5
{[%clk 0:00:25.8]} 43... Ne4 {[%clk 0:00:01.7]} 44. h6 {[%clk 0:00:21.5]} 1-0

[Event "*** Titled Tuesday Blitz"]
[Site "Chess.com"]
[Date "2021.02.02"]
[Round "5"]
[White "EugeneRougon"]
[Black "szachuspl"]
[Result "1-0"]
[WhiteElo "2736"]
[BlackElo "2544"]
[TimeControl "180+1"]
[EndTime "10:59:04 PST"]
[Termination "EugeneRougon won on time"]

1. e4 {[%clk 0:03:00.9]} 1... c5 {[%clk 0:02:59.7]} 2. Nf3 {[%clk 0:03:01]} 2...
e6 {[%clk 0:02:59.6]} 3. d4 {[%clk 0:03:01.2]} 3... cxd4 {[%clk 0:03:00]} 4.
Nxd4 {[%clk 0:03:02.1]} 4... Nf6 {[%clk 0:03:00.6]} 5. Nc3 {[%clk 0:03:02]} 5...
Nc6 {[%clk 0:03:01.1]} 6. Nxc6 {[%clk 0:03:02.3]} 6... bxc6 {[%clk 0:03:01.5]}
7. e5 {[%clk 0:03:03.2]} 7... Nd5 {[%clk 0:03:01.8]} 8. Ne4 {[%clk 0:03:03.9]}
8... Bb7 {[%clk 0:03:02.2]} 9. Be2 {[%clk 0:03:02.6]} 9... Qc7 {[%clk
0:03:01.4]} 10. Nd6+ {[%clk 0:02:46.8]} 10... Bxd6 {[%clk 0:02:54.5]} 11. exd6
{[%clk 0:02:47.7]} 11... Qb6 {[%clk 0:02:49.2]} 12. c4 {[%clk 0:02:45.9]} 12...
Nf6 {[%clk 0:02:46.7]} 13. O-O {[%clk 0:02:40.7]} 13... c5 {[%clk 0:02:43.3]}
14. Be3 {[%clk 0:02:35.9]} 14... O-O {[%clk 0:02:37.7]} 15. b4 {[%clk 0:02:34]}
15... Ne4 {[%clk 0:02:23.8]} 16. bxc5 {[%clk 0:02:30]} 16... Qa6 {[%clk
0:02:20.8]} 17. Bd3 {[%clk 0:01:40.1]} 17... Bc6 {[%clk 0:02:18.2]} 18. f3
{[%clk 0:01:31.8]} 18... Nf6 {[%clk 0:02:18.1]} 19. Bd4 {[%clk 0:01:30.3]} 19...
Nh5 {[%clk 0:02:06.5]} 20. Qd2 {[%clk 0:01:28.6]} 20... g6 {[%clk 0:01:54.7]}
21. g4 {[%clk 0:01:21.2]} 21... Ng7 {[%clk 0:01:53.1]} 22. Qh6 {[%clk
0:01:09.1]} 22... f6 {[%clk 0:01:40.1]} 23. g5 {[%clk 0:01:08.2]} 23... Nf5
{[%clk 0:01:32.3]} 24. Bxf5 {[%clk 0:01:05.1]} 24... exf5 {[%clk 0:01:32]} 25.
gxf6 {[%clk 0:00:53.5]} 25... Rf7 {[%clk 0:01:30.2]} 26. Qc1 {[%clk 0:00:42.2]}
26... Re8 {[%clk 0:01:21]} 27. Rf2 {[%clk 0:00:42.1]} 27... Re6 {[%clk 0:01:08]}
28. Qc3 {[%clk 0:00:41.7]} 28... Qa4 {[%clk 0:01:01.7]} 29. Rb1 {[%clk
0:00:39.7]} 29... Re8 {[%clk 0:01:00.9]} 30. Rfb2 {[%clk 0:00:34.3]} 30... Rff8
{[%clk 0:00:57.4]} 31. Kf2 {[%clk 0:00:28.2]} 31... Kf7 {[%clk 0:00:57.2]} 32.
Be5 {[%clk 0:00:25.3]} 32... Qa6 {[%clk 0:00:35.3]} 33. Re1 {[%clk 0:00:24.7]}
33... Re6 {[%clk 0:00:33.6]} 34. Rbe2 {[%clk 0:00:22.6]} 34... Rfe8 {[%clk
0:00:33.2]} 35. Qd4 {[%clk 0:00:20.6]} 35... Qa3 {[%clk 0:00:31.5]} 36. Qf4
{[%clk 0:00:19.1]} 36... Qxc5+ {[%clk 0:00:26.6]} 37. Kf1 {[%clk 0:00:14]} 37...
Bb7 {[%clk 0:00:10.2]} 38. Qh6 {[%clk 0:00:13.2]} 38... Rg8 {[%clk 0:00:08.7]}
39. Qxh7+ {[%clk 0:00:13.4]} 39... Kf8 {[%clk 0:00:09]} 40. f7 {[%clk
0:00:13.8]} 1-0